Cogmind - Beta 14 @@@ ROGUE MODE // 2024.09.05 @ 19:53:06 Player: Null_error Result: Destroyed by V9-7LA(R) with Subdweller Beam Cannon Performance ------------- Evolutions (0) 0 Regions Visited (3) 600 Robots Destroyed (24) 120 Value Destroyed (772) 772 Prototype IDs (0) 0 Alien Tech Used (0) 0 Bonus (0) 0 TOTAL SCORE: 1492 Bonus ------- None Cogmind --------- Core Integrity 0/250 Matter 300/300 Energy 246/250 System Corruption 0% Temperature Cool (11) Movement Walking (120) Location -10/Subcaves Parts ------- > --- POWER (1) -------- Ion Engine > --- PROPULSION (2) --- Aluminum Leg Aluminum Leg > --- UTILITY (2) ------ Small Storage Unit Structural Scanner > --- WEAPON (2) ------- Heavy Particle Cannon Hammer > --- INVENTORY (8) ---- Light Ion Engine Compact Battery (200) Terrain Scanner Targeting Computer Shock Rifle Field Laser Ion Cannon Barrage Gun Peak State ------------ > --- POWER ------------ Ion Engine > --- PROPULSION ------- Aluminum Leg Aluminum Leg > --- UTILITY ---------- Small Storage Unit Signal Interpreter > --- WEAPON ----------- Heavy Particle Cannon Hammer > --- INVENTORY -------- Ion Engine Light Ion Engine Compact Battery Terrain Scanner Terrain Scanner Targeting Computer Particle Gun Ion Cannon [Rating: 10] Favorites ----------- Power Ion Engine Engine Ion Engine Propulsion Aluminum Leg Leg Aluminum Leg Utility Small Storage Unit Device Structural Scanner Storage Small Storage Unit Processor Signal Interpreter Weapon Hammer Energy Gun Small Laser Energy Cannon Heavy Particle Cannon Ballistic Gun Assault Rifle Impact Weapon Hammer Build | -11 -10 -10 -10 ------- Run | Yrd Mat Min Sub Slots Evolved . | . . . . Power . | . . . . Propulsion . | . . . . Utility . | . . . . Weapon . | . . . . Parts Attached 27 | 6 11 10 . Power 5 | 1 3 1 . Engine 5 | 1 3 1 . Core . | . . . . Reactor . | . . . . Propulsion 8 | 2 3 3 . Treads . | . . . . Leg 8 | 2 3 3 . Wheel . | . . . . Hover . | . . . . Flight . | . . . . Utility 7 | 1 2 4 . Device 3 | . 2 1 . Storage 3 | 1 . 2 . Processor 1 | . . 1 . Hackware . | . . . . Protection . | . . . . Artifact . | . . . . Weapon 7 | 2 3 2 . Energy Gun 3 | . 2 1 . Energy Cannon 1 | . . 1 . Ballistic Gun 2 | 2 . . . Ballistic Cannon . | . . . . Launcher . | . . . . Special Weapon . | . . . . Impact Weapon 1 | . 1 . . Slashing Weapon . | . . . . Piercing Weapon . | . . . . Special Melee Weapon . | . . . . Unidentified Prototypes . | . . . . Parts Lost 8 | . 6 2 . Power 2 | . 1 1 . Propulsion 2 | . 2 . . Utility . | . . . . Weapon 4 | . 3 1 . Highest Loss Streak 4 | . 4 1 . To Critical Strikes . | . . . . Average Slot Usage (%) 91 | . 77 97 100 Engine 13 | . 13 13 14 Leg 25 | . 21 28 28 Device 10 | . 7 11 14 Storage 14 | . 14 14 14 Processor 1 | . . 2 . Energy Gun 2 | . 6 1 . Energy Cannon 7 | . . 11 14 Ballistic Gun 2 | . 8 . . Impact Weapon 10 | . 4 14 14 Peak Build Rating 10 | 6 7 10 10 Average Rating 7 | 4 5 9 10 On Entrance 5 | . 6 7 10 Naked Turns . | . . . . Heaviest Build 19 | 13 14 19 19 Greatest Support 20 | 20 20 20 20 Greatest Overweight (x) 4 | 4 3 . . Average Overweight (x) . | . . . . Largest Inventory Capacity 25 | 8 8 25 8 Average Capacity 7 | 7 8 8 8 Most Carried 8 | 2 8 8 8 Average Carried 6 | 1 3 7 8 Final Capacity 8 | 8 8 8 8 Final Carried 8 | 2 8 8 8 Class Distribution -------------------- 88% | Mutant 11% | Scavenger-Mutant Dominant Class ---------------- Mutant | -10/Materials Mutant | -10/Mines Mutant | -10/Subcaves Resources | -11 -10 -10 -10 ----------- Run | Yrd Mat Min Sub Matter Collected 528 | 260 168 100 . Remotely . | . . . . Salvage Created 901 | . 602 208 91 Parts 38 | . 29 6 3 Haulers Intercepted . | . . . . Recyclers Shooed . | . . . . Parts Field Recycled . | . . . . Retrieved Matter . | . . . . Parts Self-Destructed 9 | . . . 9 Prevented . | . . . . Kills | -11 -10 -10 -10 ------- Run | Yrd Mat Min Sub Combat Hostiles Destroyed 22 | . 16 4 2 Melee 11 | . 6 3 2 Guns 8 | . 8 . . Classes Destroyed 4 | . 3 1 . Worker 1 | . 1 . . Tunneler 1 | . . 1 . Swarmer 3 | . 3 . . Grunt 19 | . 13 4 2 Best Kill Streak 3 | . 3 2 2 Combat Bots Only 3 | . 3 2 2 Max Kills in Single Turn 1 | . 1 1 1 Gunslinging . | . . . . Exploded . | . . . . Melee 1 | . 1 1 1 Uniques/NPCs Destroyed . | . . . . Combat | -11 -10 -10 -10 -------- Run | Yrd Mat Min Sub Hostile Shots Fired 158 | . 116 20 22 Missed 42 | . 27 4 11 Damage Taken 1370 | . 1013 174 183 Core 263 | . 196 22 45 Absorbed by Shields . | . . . . Core Remaining (%) 100 | 100 . . . Volleys Fired 60 | . 50 4 6 Largest 2 | . 2 1 1 Hottest 75 | . 40 65 75 Shots Fired 76 | . 66 4 6 Gun 70 | . 66 4 . Cannon 6 | . . . 6 Launcher . | . . . . Special . | . . . . Kinetic 40 | . 40 . . Thermal 24 | . 14 4 6 Explosive . | . . . . Electromagnetic 12 | . 12 . . Robot Hit Streak 11 | . 11 3 4 Robot Miss Streak 5 | . 5 1 1 Penetration Max . | . . . . Secondary Targets 2 | . 2 . . Max Gunslinging Chain 1 | . 1 . . Shots Hit Robots 76 | . 54 15 7 Core Hits 24 | . 18 3 3 Critical Kills 1 | . 1 . . Critical Parts Destroyed 6 | . 5 1 . Critical Strikes 7 | . 6 1 . Destroy 1 | . 1 . . Smash 6 | . 5 1 . Melee Attacks 40 | . 18 20 2 Impact 40 | . 18 20 2 Slashing . | . . . . Piercing . | . . . . Sneak Attacks 2 | . . 2 . Combat Hostiles . | . . . . Follow-up Attacks . | . . . . Damage Inflicted 1581 | . 939 451 191 Guns 467 | . 416 51 . Cannons 125 | . . . 125 Explosions 86 | . 86 . . Melee 903 | . 437 400 66 Ramming . | . . . . Kinetic 185 | . 185 . . Thermal 360 | . 184 51 125 Explosive . | . . . . Electromagnetic 133 | . 133 . . Impact 903 | . 437 400 66 Slashing . | . . . . Piercing . | . . . . Highest Corruption . | . . . . Average Corruption . | . . . . Corruption Purged . | . . . . Corruption Blocked . | . . . . Overload Shots . | . . . . Overflow Damage 235 | . 145 90 . Projectiles . | . . . . Explosions 5 | . 5 . . Melee 230 | . 140 90 . Knockbacks 5 | . 3 2 . Impact 5 | . 3 2 . Kinetic . | . . . . Secondary . | . . . . Self-Inflicted Damage 4 | . 4 . . Shots 1 | . 1 . . Rammed . | . . . . Targets Rammed . | . . . . Kicked . | . . . . Crushed . | . . . . Highest Temperature 72 | . 36 72 12 Average Temperature 17 | . 16 33 7 Received Heat Transfer 666 | . 486 96 84 Siege Activations . | . . . . Robots Corrupted 4 | . 2 2 . Combat Hostiles 3 | . 2 1 . Parts Fried 10 | . 5 5 . Impact Corruptions 10 | . 6 4 . Robots Melted . | . . . . Combat Hostiles . | . . . . Parts Melted . | . . . . Heat Transferred 621 | . 325 111 185 Parts Sabotaged . | . . . . Parts Stolen . | . . . . Parts Stripped . | . . . . Power Chain Reactions 2 | . 2 . . Alert | -11 -10 -10 -10 ------- Run | Yrd Mat Min Sub Peak Influence 210 | . 210 196 . Initial 81 | . . 81 . Average 64 | . 106 51 . Maximum Alert Level 1 | . 1 . . Low Security (%) 97 | 100 91 100 . Level 1 2 | . 8 . . Level 2 . | . . . . Level 3 . | . . . . Level 4 . | . . . . Level 5 . | . . . . High Security . | . . . . Max Security . | . . . . Squads Dispatched 4 | . 3 1 . Investigation 2 | . 1 1 . Extermination . | . . . . Reinforcement 2 | . 2 . . Assault . | . . . . Garrison . | . . . . Intercept . | . . . . Searches Triggered . | . . . . Construction Impeded . | . . . . Haulers Reinforced . | . . . . Active Scanning Responses . | . . . . Cargo Convoy Interrupts . | . . . . Stealth | -11 -10 -10 -10 --------- Run | Yrd Mat Min Sub Distress Signals 1 | . 1 . . Communications Jammed . | . . . . Distress Signals . | . . . . Times Spotted 27 | . 20 4 3 Peak Tracking Total 5 | . 5 2 2 Tactical Retreats 1 | . 1 . . Traps | -11 -10 -10 -10 ------- Run | Yrd Mat Min Sub Traps Triggered 2 | . 2 . . Indirectly . | . . . . Trap Hack Attempts . | . . . . Triggered . | . . . . Disarmed . | . . . . Reprogrammed . | . . . . Reused . | . . . . Traps Extracted . | . . . . Installed . | . . . . Triggered . | . . . . Machines | -11 -10 -10 -10 ---------- Run | Yrd Mat Min Sub Machines Disabled 1 | . 1 . . Max in Single Turn 1 | . 1 . . Machines Repaired . | . . . . Machines Dismantled . | . . . . Machines Sabotaged . | . . . . Overloaded Fab Kills . | . . . . Hacking | -11 -10 -10 -10 --------- Run | Yrd Mat Min Sub Machines Accessed 2 | . . 2 . Terminals 1 | . . 1 . Fabricators . | . . . . Repair Stations . | . . . . Recycling Units . | . . . . Scanalyzers . | . . . . Garrison Access . | . . . . Total Hacks 3 | . . 3 . Successful 3 | . . 3 . Failed . | . . . . Catastrophic . | . . . . Database Lockouts . | . . . . Manual . | . . . . Terminals 2 | . . 2 . Fabricators . | . . . . Repair Stations . | . . . . Recycling Units . | . . . . Scanalyzers . | . . . . Garrison Access . | . . . . Terminal Hacks 3 | . . 3 . Record 1 | . . 1 . Open Door 1 | . . 1 . Zone Layout 1 | . . 1 . Fabricator Hacks . | . . . . Repair Station Hacks . | . . . . Recycling Unit Hacks . | . . . . Scanalyzer . | . . . . Garrison Access Hacks . | . . . . Unauthorized Hacks . | . . . . Terminals . | . . . . Fabricators . | . . . . Repair Stations . | . . . . Recycling Units . | . . . . Scanalyzers . | . . . . Garrison Access . | . . . . Data Cores Recovered . | . . . . Used . | . . . . Hacking Detections . | . . . . Full Trace Events . | . . . . Feedback Events . | . . . . Feedback Blocked . | . . . . Robot Schematics Acquired . | . . . . Robots Built . | . . . . Authchips . | . . . . Time . | . . . . Total Robot Build Rating . | . . . . Part Schematics Acquired . | . . . . Parts Built . | . . . . Authchips . | . . . . Time . | . . . . Total Part Build Rating . | . . . . Parts Repaired . | . . . . Time . | . . . . Parts Recycled . | . . . . Recycled Matter . | . . . . Retrieved Matter . | . . . . Retrieved Components . | . . . . Parts Scanalyzed . | . . . . Part Schematics Acquired . | . . . . Parts Damaged . | . . . . Bothacking | -11 -10 -10 -10 ------------ Run | Yrd Mat Min Sub Used RIF Installer . | . . . . Robots Hacked . | . . . . Non-combat . | . . . . Combat . | . . . . Robot Hacks Applied . | . . . . Relay Couplers Released . | . . . . Fabnet Peak Effective % . | . . . . Robots Rewired . | . . . . Allies Hacked . | . . . . Hacks Repelled . | . . . . Allies | -11 -10 -10 -10 -------- Run | Yrd Mat Min Sub Total Allies . | . . . . Largest Group . | . . . . Highest-Rated Group . | . . . . Highest-Rated Ally . | . . . . Total Orders . | . . . . Ally Attacks . | . . . . Total Damage . | . . . . Kills . | . . . . Allies Corrupted . | . . . . Allies Melted . | . . . . Intel | -11 -10 -10 -10 ------- Run | Yrd Mat Min Sub Robot Analysis Total . | . . . . Derelict Logs Recovered 1 | . . 1 . Drone Launches . | . . . . Drone Recoveries . | . . . . Exploration | -11 -10 -10 -10 ------------- Run | Yrd Mat Min Sub Turns Passed 2278 | 177 681 1253 167 Spaces Moved 1397 | 132 344 797 124 Core 45 | 43 2 . . Treads . | . . . . Legs 1352 | 89 342 797 124 Wheels . | . . . . Hover . | . . . . Flight . | . . . . Fastest Speed 50 | 50 120 120 120 Average Speed 124 | 125 137 120 120 Slowest Speed 250 | 250 200 120 120 Overloaded Moves . | . . . . Propulsion Burnouts . | . . . . Robots Hopped . | . . . . Cave-ins Triggered . | . . . . Exploration Rate (%) 43 | 5 60 103 6 Regions Visited 3 Branch Regions 2 Pre-discovered Areas . | . . . . Known Exits Taken . | . . . . Unknown Exits Taken 3 | 1 1 1 . Scrap Searched 1 | . . 1 . Spaces Dug 1 | . . 1 . Terrain Destroyed 4 | . 3 1 . Melee 1 | . . 1 . Projectile . | . . . . AOE 3 | . 3 . . Terrain Rammed . | . . . . Walls Destroyed . | . . . . Machines Disabled . | . . . . Actions | -11 -10 -10 -10 --------- Run | Yrd Mat Min Sub Total 1780 | 140 451 1055 134 Wait 236 | . 24 212 . Move 1394 | 131 343 796 124 Hop . | . . . . Pick Up 13 | 3 4 5 1 Fast Attach 12 | 5 6 1 . Attach 3 | 1 1 1 . Detach . | . . . . Swap 12 | . 4 8 . Drop 10 | . 1 8 1 Fire 60 | . 50 4 6 Melee 40 | . 18 20 2 Ram . | . . . . Kick . | . . . . Crush . | . . . . Escape Stasis . | . . . . Rewire . | . . . . Trap . | . . . . Miscellaneous . | . . . . Route ------- -11/Scrapyard -10/Materials (discovered 3 exits: [*Mat x2] / *Min) -10/Mines (discovered 3 exits: [*Mat x2] / [*Sub]) -10/Subcaves History --------- Turn | Location | Event 3 | -11/Scrapyard | Discovered new exit (range 15) 178 | -11/Scrapyard | Entered Materials 312 | -10/Materials | Build established: Mutant 369 | -10/Materials | Discovered new exit (range 13) 437 | -10/Materials | Lost 4 parts (1p1n2w) 566 | -10/Materials | Discovered new exit (range 15) 677 | -10/Materials | Core integrity fell below 50% 817 | -10/Materials | Discovered new exit (range 12) 859 | -10/Materials | Entered Mines 910 | -10/Mines | Core integrity fell below 20% 932 | -10/Mines | Discovered new exit (range 8) 1095 | -10/Mines | Met a Derelict shopkeep closing up shop 1162 | -10/Mines | Discovered new exit (range 8) 1332 | -10/Mines | Discovered new exit (range 10) 1816 | -10/Mines | Learned Materials trap positions 2112 | -10/Mines | Entered Subcaves 2113 | -10/Subcaves | Shifting Twisted Machinery released Battle Cannon 2137 | -10/Subcaves | Shifting Twisted Machinery released Barrage Gun 2279 | -10/Subcaves | Destroyed by V9-7LA(R) with Subdweller Beam Cannon Last Messages --------------- AMBIENT_HEAT=-10 GOAL=ESCAPE Battle Cannon falls loose from the Twisted Machinery. 02129_ 5V-4UD(u) builds Twisted Machinery. Barrage Gun falls loose from the Twisted Machinery. 02139_ Dropped Ion Engine. 02139_ Acquired Barrage Gun. 02141_ 5V-4UD(u) builds Twisted Machinery. 02150_ Subatomizers dissect the Ion Engine. 02164_ G-34 Mercenary destroyed. 02168_ G-47 Trooper destroyed. 02170_ Subatomizers dissect the Ion Engine. 02172_ Heat Sink fries itself beyond repair. 02175_ Particle Gun fries itself beyond repair. 02185_ Imp. Heat Sink fries itself beyond repair. 02185_ Subatomizers dissect the Ion Engine, destroying it. Map ----- +----------------------------------------------------+ | ?????????????????????????????????????????????????? | | ?????????????????????????????????????????????????? | | ?????????????????????????????????????????????????? | | ?????????????????????????????????????????????????? | | ?????????????????????????????????????????????????? | | ?????????????????????????????????????????????????? | | ?????????????????????????????????????????????????? | | ?????????????????????????????????????????????????? | | ?????????????????????????????????????????????????? | | ?????????????????????????????????????????????????? | | ?????????????????????????????????????????????????? | | ?????????????????????????????????????????????????? | | ?????????????????????????????????????????????????? | | ?????????????????????????########????????????????? | | ??????????????????????###########????????????????? | | ??????????????????????##### ########??????????? | | ??????????????????????##" ###########???????? | | ??????????????????????## ## #####???????? | | ??????????????????????### ###??????? | | ????????????????????? ### # # ## ###??????? | | ????????????????????? #### ""######## ##??????? | | ?????????????????????## """##### ## #####????? | | ?????????????????????### """"###### ## ######???? | | ?????????????????????###""" "##### # ####??? | | ?????????????????????### ##### ###??? | | ??????????????????#####" @# ####### ###?? | | ????????????????? ##### ###### ###?? | | ????????????????? """" R ####### ### ##?? | | ????????????????? """" u ##"" # % ### #### | | ????????????????? ##### """ % ## " #### | | ?????????????????###### "" "" " ## | | ?????????????????????### " # ## ### #" ### | | ?????????????????????#### ## ]# ##### ## ### | | ??????????????????????#### ### " ### ## ## | | ???????????????????????### #### " ### ## ## | | ???????????????????????## #### " #####" " "## | | ???????????????????????## #### #######" " "## | | ???????????????????????## ## ###### ""### ""# | | ???????????????????????## ###?## """### "## | | ???????????????????????## ## ##### "#### ""# | | ???????????????????????####### "## #### # | | ???????????????????????####### #########? ## | | ????????????????????????????##############???&#### | | ????????????????????????????#########???????? ### | | ????????????????????????????????????????????? ???? | | ?????????????????????????????????????????????"???? | | ????????????????????????????????????????????? ???? | | ?????????????????????????????????????????????????? | | ?????????????????????????????????????????????????? | | ?????????????????????????????????????????????????? | +----------------------------------------------------+ Best States ------------- Heat Dissipation 25 Energy Generation 10 Energy Capacity 250 Matter Stores 300 Matter Capacity 300 Sight Range 16 Terrain Scan Range 14 Terrain Scan Density 10 Evasion (%) 55 Item Schematics ----------------- None Robot Schematics ------------------ None Fabricated ------------ Nothing Alien Tech Used ----------------- None Achievements -------------- None Challenges ------------ None Game ------ Seed ReinforcedEfficiencyCycler Manual? 0 Play Time 00:24:10 Cumulative 14.3 hours Start 2024.09.05 @ 18:29:21 End 2024.09.05 @ 19:53:06 Sessions 15 Manual Loads 0 Difficulty Rogue Special Mode None Game No. 21 Rogue 21 Adventurer 0 Explorer 0 Win Type - Total 0 Types 0/0/0/0/0/0/0/0/0 Lore% 10 Gallery% 22 Achievement% 14 Wizard Run 0 Options --------- Layout 1 ASCII 0 Keyboard 1 Movement Numpad Keybinds 0 Fullscreen 2 Font 24/Smallcaps Map View 50x35 Zoom Use 5% Tactical HUD 1 Map Filters NONE Filters LOW_CONTRAST(5,20,10) Steam 1 RUN: 0d20bbf3-cc3e-44f4-8242-d2d638582418